[Event "Early-Titled-Tuesday-Blitz-November-28-2023"]
[Site "Chess.com"]
[Date "2023.11.28"]
[Round "3"]
[White "IsuruAlahakoon"]
[Black "secretsuperstar7"]
[Result "1-0"]
[WhiteElo "2277"]
[BlackElo "2464"]
[TimeControl "180+1"]
[EndTime "8:28:06 PST"]
[Termination "IsuruAlahakoon won by checkmate"]

1. Nf3 {[%clk 0:03:00.9]} 1... d5 {[%clk 0:02:59.4]} 2. e3 {[%clk 0:03:00.2]}
2... c5 {[%clk 0:02:55.8]} 3. b3 {[%clk 0:02:59.4]} 3... Nf6 {[%clk 0:02:54.9]}
4. Bb2 {[%clk 0:02:58.6]} 4... Nc6 {[%clk 0:02:54.1]} 5. Bb5 {[%clk 0:02:57]}
5... Bd7 {[%clk 0:02:49.4]} 6. c4 {[%clk 0:02:55.6]} 6... e6 {[%clk 0:02:40.3]}
7. d3 {[%clk 0:02:52.6]} 7... Bd6 {[%clk 0:02:31.9]} 8. Nbd2 {[%clk 0:02:50.3]}
8... O-O {[%clk 0:02:28.3]} 9. O-O {[%clk 0:02:44.9]} 9... Rc8 {[%clk
0:02:05.2]} 10. Bxc6 {[%clk 0:02:39.9]} 10... Bxc6 {[%clk 0:02:03.4]} 11. Qe1
{[%clk 0:02:34.2]} 11... Qe7 {[%clk 0:01:53.4]} 12. e4 {[%clk 0:02:33.6]} 12...
dxe4 {[%clk 0:01:47.3]} 13. dxe4 {[%clk 0:02:27.3]} 13... e5 {[%clk 0:01:43.6]}
14. Nh4 {[%clk 0:02:23.1]} 14... Bd7 {[%clk 0:01:31.7]} 15. f3 {[%clk
0:01:59.8]} 15... g6 {[%clk 0:01:06.7]} 16. f4 {[%clk 0:01:50.2]} 16... Nh5
{[%clk 0:00:52.9]} 17. f5 {[%clk 0:01:43.8]} 17... Nf4 {[%clk 0:00:44]} 18. Rxf4
{[%clk 0:01:36.9]} 18... exf4 {[%clk 0:00:42.8]} 19. e5 {[%clk 0:01:36.8]} 19...
Bc7 {[%clk 0:00:35.4]} 20. f6 {[%clk 0:01:10]} 20... Qe6 {[%clk 0:00:27.3]} 21.
Nhf3 {[%clk 0:01:01.7]} 21... Qf5 {[%clk 0:00:12.7]} 22. Qh4 {[%clk 0:00:54.1]}
22... Qh5 {[%clk 0:00:12.3]} 23. Qxf4 {[%clk 0:00:52.3]} 23... Qf5 {[%clk
0:00:04]} 24. Qh6 {[%clk 0:00:49.2]} 24... Bxe5 {[%clk 0:00:01.7]} 25. Qg7#
{[%clk 0:00:47.2]} 1-0

[Event "Early-Titled-Tuesday-Blitz-November-28-2023"]
[Site "Chess.com"]
[Date "2023.11.28"]
[Round "3"]
[White "Aygehovit1992"]
[Black "AryanTari"]
[Result "0-1"]
[WhiteElo "2721"]
[BlackElo "2968"]
[TimeControl "180+1"]
[EndTime "8:28:12 PST"]
[Termination "AryanTari won by resignation"]

1. e4 {[%clk 0:03:00.9]} 1... e5 {[%clk 0:02:57]} 2. Nf3 {[%clk 0:03:01]} 2...
Nc6 {[%clk 0:02:57.5]} 3. Bb5 {[%clk 0:03:01.6]} 3... Nge7 {[%clk 0:02:57.7]} 4.
O-O {[%clk 0:02:54.2]} 4... Ng6 {[%clk 0:02:57.2]} 5. d4 {[%clk 0:02:51]} 5...
exd4 {[%clk 0:02:56.9]} 6. Nxd4 {[%clk 0:02:51.3]} 6... Bc5 {[%clk 0:02:56.5]}
7. Nf5 {[%clk 0:02:44.4]} 7... O-O {[%clk 0:02:55.6]} 8. Nc3 {[%clk 0:02:44.7]}
8... d6 {[%clk 0:02:54]} 9. Bxc6 {[%clk 0:02:40.8]} 9... bxc6 {[%clk 0:02:53.6]}
10. Qf3 {[%clk 0:02:39.5]} 10... Re8 {[%clk 0:02:33.7]} 11. Qg3 {[%clk 0:02:02]}
11... Re5 {[%clk 0:02:11.8]} 12. Bg5 {[%clk 0:01:24.9]} 12... Qe8 {[%clk
0:02:10.9]} 13. h4 {[%clk 0:01:09.8]} 13... Bxf5 {[%clk 0:02:02]} 14. exf5
{[%clk 0:01:10.7]} 14... Rxf5 {[%clk 0:02:02.7]} 15. h5 {[%clk 0:01:11.4]} 15...
Qe5 {[%clk 0:01:59.5]} 16. Qxe5 {[%clk 0:01:02.6]} 16... Nxe5 {[%clk 0:02:00.4]}
17. Ne4 {[%clk 0:01:02.8]} 17... Bb6 {[%clk 0:01:51]} 18. Bd2 {[%clk 0:00:35.8]}
18... Rxh5 {[%clk 0:01:46.5]} 19. a4 {[%clk 0:00:36.5]} 19... a6 {[%clk
0:01:42.2]} 20. a5 {[%clk 0:00:35.9]} 20... Ba7 {[%clk 0:01:42.7]} 21. Ng3
{[%clk 0:00:23.8]} 21... Rh4 {[%clk 0:01:42.6]} 22. Nf5 {[%clk 0:00:24.2]} 22...
Rg4 {[%clk 0:01:37.7]} 23. Be3 {[%clk 0:00:13]} 23... Bxe3 {[%clk 0:01:26.4]}
24. fxe3 {[%clk 0:00:13.9]} 24... Kf8 {[%clk 0:01:19.4]} 25. Ra3 {[%clk
0:00:11.3]} 25... g6 {[%clk 0:01:19]} 26. Nh6 {[%clk 0:00:11.2]} 26... Rb4
{[%clk 0:01:17.4]} 27. e4 {[%clk 0:00:05]} 27... Kg7 {[%clk 0:01:17.3]} 28. Rh3
{[%clk 0:00:02.9]} 28... Rxe4 {[%clk 0:01:14.3]} 29. b3 {[%clk 0:00:01.8]} 29...
c5 {[%clk 0:01:12.9]} 30. Rf2 {[%clk 0:00:01.2]} 30... Re8 {[%clk 0:01:12]} 31.
Rf1 {[%clk 0:00:01.7]} 31... Re2 {[%clk 0:01:10.2]} 32. Kh1 {[%clk 0:00:01.5]}
32... Rxc2 {[%clk 0:01:09.4]} 33. g4 {[%clk 0:00:01.4]} 33... f6 {[%clk
0:01:06]} 34. g5 {[%clk 0:00:01.3]} 34... fxg5 {[%clk 0:01:05.6]} 35. b4 {[%clk
0:00:01.9]} 35... cxb4 {[%clk 0:01:05.6]} 36. Ng4 {[%clk 0:00:01.5]} 36... Nxg4
{[%clk 0:01:05]} 0-1

[Event "Early-Titled-Tuesday-Blitz-November-28-2023"]
[Site "Chess.com"]
[Date "2023.11.28"]
[Round "3"]
[White "Zainullina_Nataliya"]
[Black "twitchTriniCupid"]
[Result "0-1"]
[WhiteElo "2124"]
[BlackElo "2375"]
[TimeControl "180+1"]
[EndTime "8:28:14 PST"]
[Termination "twitchTriniCupid won on time"]

1. e4 {[%clk 0:03:00.1]} 1... c6 {[%clk 0:02:59.1]} 2. Nc3 {[%clk 0:02:58.7]}
2... d5 {[%clk 0:03:00]} 3. Nf3 {[%clk 0:02:58.3]} 3... Bg4 {[%clk 0:02:59.2]}
4. exd5 {[%clk 0:02:56.7]} 4... cxd5 {[%clk 0:02:59]} 5. h3 {[%clk 0:02:56.7]}
5... Bxf3 {[%clk 0:02:54.4]} 6. Qxf3 {[%clk 0:02:56.2]} 6... e6 {[%clk
0:02:53.7]} 7. Be2 {[%clk 0:02:55.8]} 7... Nc6 {[%clk 0:02:52.1]} 8. Qg3 {[%clk
0:02:34.6]} 8... a6 {[%clk 0:02:50.2]} 9. O-O {[%clk 0:02:33.9]} 9... Nf6 {[%clk
0:02:49.9]} 10. a3 {[%clk 0:02:20.7]} 10... Rc8 {[%clk 0:02:09.2]} 11. Bd3
{[%clk 0:01:34.2]} 11... g6 {[%clk 0:02:01.8]} 12. Ne2 {[%clk 0:01:17.3]} 12...
Bg7 {[%clk 0:02:01.4]} 13. c3 {[%clk 0:00:59.6]} 13... O-O {[%clk 0:01:59.9]}
14. Bc2 {[%clk 0:00:59.4]} 14... e5 {[%clk 0:01:58.9]} 15. d3 {[%clk 0:00:57.8]}
15... Nh5 {[%clk 0:01:54.8]} 16. Qg4 {[%clk 0:00:48.6]} 16... f5 {[%clk
0:01:52.3]} 17. Qg5 {[%clk 0:00:45]} 17... Qb6 {[%clk 0:01:36]} 18. Qe3 {[%clk
0:00:19.2]} 18... d4 {[%clk 0:01:23.2]} 19. Qd2 {[%clk 0:00:16.2]} 19... Kh8
{[%clk 0:01:18.6]} 20. c4 {[%clk 0:00:15]} 20... a5 {[%clk 0:01:09.4]} 21. Rb1
{[%clk 0:00:14.2]} 21... Rfe8 {[%clk 0:01:06.6]} 22. b4 {[%clk 0:00:13.1]} 22...
axb4 {[%clk 0:01:06.7]} 23. axb4 {[%clk 0:00:13.1]} 23... e4 {[%clk 0:01:04.6]}
24. b5 {[%clk 0:00:11.8]} 24... Ne5 {[%clk 0:00:59.5]} 25. dxe4 {[%clk
0:00:09.9]} 25... Nxc4 {[%clk 0:00:59.4]} 26. Qb4 {[%clk 0:00:06.4]} 26... fxe4
{[%clk 0:00:57]} 27. Bb3 {[%clk 0:00:02.8]} 27... Nd6 {[%clk 0:00:44.4]} 0-1

[Event "Early-Titled-Tuesday-Blitz-November-28-2023"]
[Site "Chess.com"]
[Date "2023.11.28"]
[Round "3"]
[White "Flawless_Fighter"]
[Black "AndresDelgado77"]
[Result "1-0"]
[WhiteElo "2815"]
[BlackElo "2271"]
[TimeControl "180+1"]
[EndTime "8:28:16 PST"]
[Termination "Flawless_Fighter won on time"]

1. e4 {[%clk 0:03:00.9]} 1... e6 {[%clk 0:02:59.4]} 2. d4 {[%clk 0:03:00.8]}
2... d5 {[%clk 0:02:59.4]} 3. Nd2 {[%clk 0:03:01.4]} 3... Nc6 {[%clk 0:02:59]}
4. Ngf3 {[%clk 0:03:00.4]} 4... Nf6 {[%clk 0:02:58.2]} 5. e5 {[%clk 0:02:57.8]}
5... Nd7 {[%clk 0:02:58.3]} 6. Nb3 {[%clk 0:02:54.1]} 6... f6 {[%clk 0:02:56.7]}
7. exf6 {[%clk 0:02:55]} 7... Qxf6 {[%clk 0:02:55.8]} 8. Bb5 {[%clk 0:02:55.1]}
8... Bd6 {[%clk 0:02:52]} 9. O-O {[%clk 0:02:55.2]} 9... O-O {[%clk 0:02:51.4]}
10. Bg5 {[%clk 0:02:45.6]} 10... Qg6 {[%clk 0:02:37.4]} 11. Bh4 {[%clk
0:02:41.4]} 11... e5 {[%clk 0:02:25.7]} 12. Bg3 {[%clk 0:02:15]} 12... e4 {[%clk
0:02:18.3]} 13. Bxc6 {[%clk 0:02:09.3]} 13... bxc6 {[%clk 0:02:14.7]} 14. Ne5
{[%clk 0:02:09]} 14... Nxe5 {[%clk 0:01:48.5]} 15. dxe5 {[%clk 0:02:06.5]} 15...
Be7 {[%clk 0:01:48.5]} 16. Qd4 {[%clk 0:02:01.2]} 16... h5 {[%clk 0:01:33.4]}
17. h4 {[%clk 0:01:57.4]} 17... Qg4 {[%clk 0:01:32.6]} 18. Qd1 {[%clk
0:01:52.7]} 18... Qg6 {[%clk 0:01:07.9]} 19. Kh2 {[%clk 0:01:48.8]} 19... Be6
{[%clk 0:00:59.4]} 20. c4 {[%clk 0:01:27.2]} 20... Rfd8 {[%clk 0:00:48]} 21.
cxd5 {[%clk 0:01:22.6]} 21... cxd5 {[%clk 0:00:45.2]} 22. Rc1 {[%clk 0:01:21.3]}
22... Rd7 {[%clk 0:00:40.2]} 23. Rc6 {[%clk 0:01:16.8]} 23... Qf7 {[%clk
0:00:35.1]} 24. Nd4 {[%clk 0:01:16.1]} 24... Bg4 {[%clk 0:00:19.3]} 25. f3
{[%clk 0:01:11.8]} 25... exf3 {[%clk 0:00:18.6]} 26. gxf3 {[%clk 0:01:11.9]}
26... Rf8 {[%clk 0:00:15.8]} 27. e6 {[%clk 0:01:08.4]} 27... Bxe6 {[%clk
0:00:15]} 28. Nxe6 {[%clk 0:01:08.2]} 28... Bd6 {[%clk 0:00:14.9]} 29. Nxf8
{[%clk 0:01:02.8]} 29... Bxg3+ {[%clk 0:00:14.7]} 30. Kxg3 {[%clk 0:01:03.7]}
30... Qxf8 {[%clk 0:00:13.7]} 31. Qd4 {[%clk 0:01:00.8]} 31... Rf7 {[%clk
0:00:10.7]} 32. Qxd5 {[%clk 0:00:59.7]} 32... g6 {[%clk 0:00:08.9]} 33. Rxg6+
{[%clk 0:00:58.9]} 1-0

[Event "Early-Titled-Tuesday-Blitz-November-28-2023"]
[Site "Chess.com"]
[Date "2023.11.28"]
[Round "3"]
[White "Maxfan2008"]
[Black "Narek_Ghimoyan"]
[Result "1-0"]
[WhiteElo "2548"]
[BlackElo "2289"]
[TimeControl "180+1"]
[EndTime "8:28:23 PST"]
[Termination "Maxfan2008 won by resignation"]

1. d4 {[%clk 0:03:00.9]} 1... Nf6 {[%clk 0:02:59.1]} 2. c4 {[%clk 0:03:00.8]}
2... e6 {[%clk 0:02:58.4]} 3. Nc3 {[%clk 0:03:00.3]} 3... Bb4 {[%clk 0:02:57.3]}
4. Nf3 {[%clk 0:03:00.9]} 4... O-O {[%clk 0:02:55]} 5. Bg5 {[%clk 0:03:00.4]}
5... h6 {[%clk 0:02:41.6]} 6. Bh4 {[%clk 0:02:58.5]} 6... d5 {[%clk 0:02:41]} 7.
cxd5 {[%clk 0:02:57.6]} 7... exd5 {[%clk 0:02:40.2]} 8. e3 {[%clk 0:02:57.9]}
8... c6 {[%clk 0:02:39.9]} 9. Bd3 {[%clk 0:02:57.3]} 9... Re8 {[%clk 0:02:40.2]}
10. Ne5 {[%clk 0:02:54.6]} 10... c5 {[%clk 0:02:26.9]} 11. O-O {[%clk
0:02:50.4]} 11... Nc6 {[%clk 0:02:22.1]} 12. Bxf6 {[%clk 0:02:39.2]} 12... Qxf6
{[%clk 0:02:19.6]} 13. Nxd5 {[%clk 0:02:37.8]} 13... Qd6 {[%clk 0:02:15.5]} 14.
Nxc6 {[%clk 0:02:26.4]} 14... bxc6 {[%clk 0:02:03.4]} 15. Nxb4 {[%clk
0:02:22.2]} 15... cxb4 {[%clk 0:02:03]} 16. Rc1 {[%clk 0:02:19.7]} 16... Be6
{[%clk 0:02:02]} 17. Bb1 {[%clk 0:02:16]} 17... Bd5 {[%clk 0:01:58.6]} 18. Qg4
{[%clk 0:01:59.7]} 18... Rad8 {[%clk 0:01:38.4]} 19. Qg3 {[%clk 0:01:53.2]}
19... Qe6 {[%clk 0:01:31.4]} 20. Rc5 {[%clk 0:01:48.1]} 20... Bxa2 {[%clk
0:01:26.3]} 21. Bxa2 {[%clk 0:01:28.7]} 21... Qxa2 {[%clk 0:01:27.2]} 22. Rxc6
{[%clk 0:01:28.7]} 22... Qxb2 {[%clk 0:01:24.3]} 23. Rxh6 {[%clk 0:01:27.3]}
23... Qc2 {[%clk 0:01:05.1]} 24. Rh5 {[%clk 0:01:20.8]} 24... Rb8 {[%clk
0:00:57]} 25. Qh3 {[%clk 0:01:14.1]} 25... Kf8 {[%clk 0:00:35.7]} 26. Qd7 {[%clk
0:01:01.7]} 26... Kg8 {[%clk 0:00:25.8]} 27. Qh3 {[%clk 0:00:52.3]} 27... Kf8
{[%clk 0:00:24.1]} 28. d5 {[%clk 0:00:46.3]} 28... b3 {[%clk 0:00:20.2]} 29. d6
{[%clk 0:00:46.4]} 29... f6 {[%clk 0:00:18.5]} 30. Rh8+ {[%clk 0:00:39.5]} 30...
Kf7 {[%clk 0:00:18.6]} 31. Qd7+ {[%clk 0:00:40]} 31... Kg6 {[%clk 0:00:17.7]}
32. Rxe8 {[%clk 0:00:38.6]} 32... b2 {[%clk 0:00:18]} 33. Rxb8 {[%clk
0:00:36.1]} 33... b1=Q {[%clk 0:00:15.9]} 34. Rbxb1 {[%clk 0:00:35]} 1-0

[Event "Early-Titled-Tuesday-Blitz-November-28-2023"]
[Site "Chess.com"]
[Date "2023.11.28"]
[Round "3"]
[White "Krakozia"]
[Black "lefonghua"]
[Result "1-0"]
[WhiteElo "2956"]
[BlackElo "2715"]
[TimeControl "180+1"]
[EndTime "8:28:27 PST"]
[Termination "Krakozia won by resignation"]

1. d4 {[%clk 0:03:00.9]} 1... Nf6 {[%clk 0:03:00]} 2. Nf3 {[%clk 0:03:00.6]}
2... g6 {[%clk 0:03:00.1]} 3. Bg5 {[%clk 0:03:00.2]} 3... Bg7 {[%clk 0:03:00.4]}
4. Nbd2 {[%clk 0:03:00]} 4... O-O {[%clk 0:03:00.4]} 5. c3 {[%clk 0:03:00.1]}
5... d6 {[%clk 0:02:58.6]} 6. e4 {[%clk 0:02:59.7]} 6... c5 {[%clk 0:02:58.8]}
7. d5 {[%clk 0:02:58.5]} 7... h6 {[%clk 0:02:52.1]} 8. Bh4 {[%clk 0:02:57]} 8...
e6 {[%clk 0:02:51.7]} 9. dxe6 {[%clk 0:02:56.3]} 9... Bxe6 {[%clk 0:02:49.1]}
10. Be2 {[%clk 0:02:56.7]} 10... Nc6 {[%clk 0:02:47.3]} 11. O-O {[%clk 0:02:56]}
11... g5 {[%clk 0:02:42.7]} 12. Bg3 {[%clk 0:02:54.7]} 12... Nh5 {[%clk
0:02:27.7]} 13. Nc4 {[%clk 0:02:52.8]} 13... Nxg3 {[%clk 0:02:25.2]} 14. hxg3
{[%clk 0:02:52.4]} 14... d5 {[%clk 0:02:18.8]} 15. exd5 {[%clk 0:02:52.8]} 15...
Qxd5 {[%clk 0:02:15.5]} 16. Nd6 {[%clk 0:02:40.5]} 16... Qxd1 {[%clk 0:02:05.4]}
17. Rfxd1 {[%clk 0:02:31.2]} 17... b6 {[%clk 0:02:05.6]} 18. Bc4 {[%clk
0:01:59.6]} 18... Bxc4 {[%clk 0:02:01]} 19. Nxc4 {[%clk 0:01:44.7]} 19... Rad8
{[%clk 0:02:01]} 20. Ne3 {[%clk 0:01:43.2]} 20... Ne7 {[%clk 0:01:50.8]} 21. g4
{[%clk 0:01:36.6]} 21... Rfe8 {[%clk 0:01:48.8]} 22. g3 {[%clk 0:01:31.2]} 22...
Kf8 {[%clk 0:01:48.5]} 23. Kg2 {[%clk 0:01:30.7]} 23... Nc6 {[%clk 0:01:33.7]}
24. a4 {[%clk 0:01:29.2]} 24... Rxd1 {[%clk 0:01:33.2]} 25. Rxd1 {[%clk
0:01:27.7]} 25... Rd8 {[%clk 0:01:33.6]} 26. Rxd8+ {[%clk 0:01:24.9]} 26... Nxd8
{[%clk 0:01:34.5]} 27. Nd2 {[%clk 0:01:24.1]} 27... Ne6 {[%clk 0:01:30.9]} 28.
Kf3 {[%clk 0:01:24.6]} 28... Ke8 {[%clk 0:01:29.8]} 29. Ke4 {[%clk 0:01:24.3]}
29... Kd7 {[%clk 0:01:25.3]} 30. Ndc4 {[%clk 0:01:23.2]} 30... Nd8 {[%clk
0:01:08.3]} 31. Nf5 {[%clk 0:01:20.7]} 31... Bf8 {[%clk 0:01:08.8]} 32. Kd5
{[%clk 0:01:17.5]} 32... Nc6 {[%clk 0:01:05.4]} 33. Ne5+ {[%clk 0:01:17]} 33...
Nxe5 {[%clk 0:01:05.9]} 34. Kxe5 {[%clk 0:01:17.3]} 34... c4 {[%clk 0:01:03.1]}
35. Kd5 {[%clk 0:01:16.2]} 35... Bc5 {[%clk 0:01:01.9]} 36. f3 {[%clk
0:01:16.7]} 36... Bf2 {[%clk 0:00:57.9]} 37. Kxc4 {[%clk 0:01:15.2]} 37... Ke6
{[%clk 0:00:55.3]} 38. b4 {[%clk 0:01:12.5]} 38... h5 {[%clk 0:00:55]} 39. Ng7+
{[%clk 0:01:06.3]} 39... Kf6 {[%clk 0:00:52.6]} 40. Nxh5+ {[%clk 0:01:06.5]}
40... Kg6 {[%clk 0:00:53.2]} 41. Kd5 {[%clk 0:01:03.8]} 41... Be1 {[%clk
0:00:53.2]} 42. Kd4 {[%clk 0:01:03]} 42... f5 {[%clk 0:00:46.9]} 43. Kd3 {[%clk
0:01:01.8]} 43... fxg4 {[%clk 0:00:45.5]} 44. fxg4 {[%clk 0:01:02.3]} 44... Bf2
{[%clk 0:00:45.8]} 45. c4 {[%clk 0:00:57.4]} 45... Be1 {[%clk 0:00:45.3]} 46. b5
{[%clk 0:00:57.8]} 46... Bf2 {[%clk 0:00:45.1]} 47. Ke4 {[%clk 0:00:58.3]} 47...
Bg1 {[%clk 0:00:36.9]} 48. Kd5 {[%clk 0:00:58.4]} 48... Kf7 {[%clk 0:00:35.3]}
49. Ke5 {[%clk 0:00:57.9]} 49... Kg6 {[%clk 0:00:32.7]} 50. Nf6 {[%clk
0:00:56.6]} 50... Bf2 {[%clk 0:00:30.6]} 51. Ne4 {[%clk 0:00:56.8]} 51... Be1
{[%clk 0:00:31.2]} 52. Ke6 {[%clk 0:00:56.3]} 52... Kg7 {[%clk 0:00:31.4]} 1-0

[Event "Early-Titled-Tuesday-Blitz-November-28-2023"]
[Site "Chess.com"]
[Date "2023.11.28"]
[Round "3"]
[White "Predator0608"]
[Black "LimeInTheCoconut"]
[Result "1-0"]
[WhiteElo "2589"]
[BlackElo "2415"]
[TimeControl "180+1"]
[EndTime "8:28:27 PST"]
[Termination "Predator0608 won by checkmate"]

1. e4 {[%clk 0:03:00.9]} 1... c6 {[%clk 0:02:59.9]} 2. d4 {[%clk 0:03:01]} 2...
d5 {[%clk 0:03:00.5]} 3. f3 {[%clk 0:03:01.7]} 3... e6 {[%clk 0:02:58.4]} 4. Nc3
{[%clk 0:03:01.2]} 4... Nf6 {[%clk 0:02:57.9]} 5. e5 {[%clk 0:03:00.6]} 5...
Nfd7 {[%clk 0:02:58.5]} 6. f4 {[%clk 0:03:01.5]} 6... c5 {[%clk 0:02:58.8]} 7.
Nf3 {[%clk 0:03:02.4]} 7... Nc6 {[%clk 0:02:58.9]} 8. Be3 {[%clk 0:03:03]} 8...
a5 {[%clk 0:02:56.8]} 9. Bb5 {[%clk 0:02:11.5]} 9... Qc7 {[%clk 0:02:48.4]} 10.
O-O {[%clk 0:02:03.4]} 10... b6 {[%clk 0:02:48.3]} 11. f5 {[%clk 0:02:00.1]}
11... Ba6 {[%clk 0:01:46.2]} 12. fxe6 {[%clk 0:01:43.7]} 12... fxe6 {[%clk
0:01:47.1]} 13. Ng5 {[%clk 0:01:44.1]} 13... Nd8 {[%clk 0:01:47.4]} 14. Qg4
{[%clk 0:01:01.1]} 14... Bxb5 {[%clk 0:01:19.6]} 15. Nxe6 {[%clk 0:00:46.9]}
15... Qc6 {[%clk 0:00:53.1]} 16. Nxg7+ {[%clk 0:00:40.3]} 16... Bxg7 {[%clk
0:00:43.1]} 17. Qxg7 {[%clk 0:00:41.2]} 17... Rf8 {[%clk 0:00:17.4]} 18. Bg5
{[%clk 0:00:16.4]} 18... Qe6 {[%clk 0:00:11.6]} 19. Nxb5 {[%clk 0:00:15.2]}
19... Nf7 {[%clk 0:00:02.7]} 20. Nc7# {[%clk 0:00:14.9]} 1-0

[Event "Early-Titled-Tuesday-Blitz-November-28-2023"]
[Site "Chess.com"]
[Date "2023.11.28"]
[Round "3"]
[White "Quattroporte300"]
[Black "Fh2411"]
[Result "1-0"]
[WhiteElo "2394"]
[BlackElo "2560"]
[TimeControl "180+1"]
[EndTime "8:28:27 PST"]
[Termination "Quattroporte300 won by checkmate"]

1. e4 {[%clk 0:02:57.6]} 1... c5 {[%clk 0:02:58.1]} 2. Nc3 {[%clk 0:02:56.5]}
2... Nc6 {[%clk 0:02:52.6]} 3. Bb5 {[%clk 0:02:55.4]} 3... g6 {[%clk 0:02:29.4]}
4. Nge2 {[%clk 0:02:51.8]} 4... Bg7 {[%clk 0:02:29.1]} 5. Bxc6 {[%clk
0:02:50.7]} 5... dxc6 {[%clk 0:02:28.4]} 6. d3 {[%clk 0:02:51]} 6... e5 {[%clk
0:02:25.6]} 7. Be3 {[%clk 0:02:51.2]} 7... b6 {[%clk 0:02:24.6]} 8. Qd2 {[%clk
0:02:50.2]} 8... h6 {[%clk 0:02:07.7]} 9. O-O-O {[%clk 0:02:48.6]} 9... Nf6
{[%clk 0:02:03.9]} 10. h3 {[%clk 0:02:47.1]} 10... Ba6 {[%clk 0:01:38.7]} 11.
Kb1 {[%clk 0:02:44.3]} 11... Nd7 {[%clk 0:01:33.1]} 12. f4 {[%clk 0:02:42]}
12... Qe7 {[%clk 0:01:29.6]} 13. g4 {[%clk 0:02:34.4]} 13... exf4 {[%clk
0:01:27.2]} 14. Bxf4 {[%clk 0:02:27.7]} 14... Ne5 {[%clk 0:01:22.1]} 15. Qe3
{[%clk 0:02:16.6]} 15... O-O-O {[%clk 0:01:18]} 16. Rhf1 {[%clk 0:02:16.7]}
16... Rd7 {[%clk 0:01:12.4]} 17. a3 {[%clk 0:02:10.5]} 17... b5 {[%clk
0:01:08.3]} 18. Na2 {[%clk 0:01:54.5]} 18... b4 {[%clk 0:01:04.6]} 19. axb4
{[%clk 0:01:36.8]} 19... cxb4 {[%clk 0:01:05.5]} 20. d4 {[%clk 0:01:37.2]} 20...
Nc4 {[%clk 0:01:02.9]} 21. Qb3 {[%clk 0:01:31.7]} 21... Na5 {[%clk 0:00:59.3]}
22. Qe3 {[%clk 0:01:21]} 22... g5 {[%clk 0:00:31.6]} 23. Bh2 {[%clk 0:01:17.8]}
23... Rhd8 {[%clk 0:00:31.1]} 24. Rf5 {[%clk 0:01:04.9]} 24... Nc4 {[%clk
0:00:26.4]} 25. Qg3 {[%clk 0:01:05.3]} 25... Nd6 {[%clk 0:00:25.7]} 26. Nec1
{[%clk 0:00:36.7]} 26... Qxe4 {[%clk 0:00:22.4]} 27. Nxb4 {[%clk 0:00:35.6]}
27... Bc4 {[%clk 0:00:21.8]} 28. Nbd3 {[%clk 0:00:28.1]} 28... Be6 {[%clk
0:00:21.5]} 29. Ra5 {[%clk 0:00:26.2]} 29... Nc4 {[%clk 0:00:20.9]} 30. Qb8#
{[%clk 0:00:22.9]} 1-0

[Event "Early-Titled-Tuesday-Blitz-November-28-2023"]
[Site "Chess.com"]
[Date "2023.11.28"]
[Round "3"]
[White "Artem_Sadovsky"]
[Black "MatyChess1"]
[Result "0-1"]
[WhiteElo "2494"]
[BlackElo "2666"]
[TimeControl "180+1"]
[EndTime "8:28:28 PST"]
[Termination "MatyChess1 won on time"]

1. Nf3 {[%clk 0:00:21.9]} 1... d5 {[%clk 0:02:58.6]} 2. e3 {[%clk 0:00:20.9]}
2... Nf6 {[%clk 0:02:58.2]} 3. c4 {[%clk 0:00:21.3]} 3... e6 {[%clk 0:02:58.4]}
4. b3 {[%clk 0:00:21.4]} 4... c5 {[%clk 0:02:56]} 5. Bb2 {[%clk 0:00:22.3]} 5...
Nc6 {[%clk 0:02:56]} 6. cxd5 {[%clk 0:00:23]} 6... exd5 {[%clk 0:02:55.5]} 7.
Be2 {[%clk 0:00:23.7]} 7... Bd6 {[%clk 0:02:54.5]} 8. O-O {[%clk 0:00:23.5]}
8... O-O {[%clk 0:02:55.1]} 9. d4 {[%clk 0:00:24.4]} 9... Re8 {[%clk 0:02:50.6]}
10. dxc5 {[%clk 0:00:24.5]} 10... Bxc5 {[%clk 0:02:51.5]} 11. Nc3 {[%clk
0:00:24.9]} 11... Bg4 {[%clk 0:02:51.9]} 12. Rc1 {[%clk 0:00:25.1]} 12... Be7
{[%clk 0:02:02.1]} 13. Nb5 {[%clk 0:00:23.6]} 13... Ne4 {[%clk 0:01:56.4]} 14.
h3 {[%clk 0:00:23.5]} 14... Bh5 {[%clk 0:01:44.3]} 15. Nd2 {[%clk 0:00:22]}
15... Bg6 {[%clk 0:01:40.9]} 16. Nxe4 {[%clk 0:00:21.7]} 16... Bxe4 {[%clk
0:01:35.3]} 17. Nd4 {[%clk 0:00:20.2]} 17... Bf6 {[%clk 0:01:23.2]} 18. Qd2
{[%clk 0:00:14]} 18... Bxd4 {[%clk 0:01:19.3]} 19. Bxd4 {[%clk 0:00:13.4]} 19...
Qg5 {[%clk 0:01:19.8]} 20. f3 {[%clk 0:00:06.7]} 20... Bf5 {[%clk 0:01:16.8]}
21. f4 {[%clk 0:00:06.1]} 21... Qg3 {[%clk 0:01:17.4]} 22. Rf3 {[%clk
0:00:05.3]} 22... Qg6 {[%clk 0:01:16.4]} 23. Re1 {[%clk 0:00:01.8]} 23... Be4
{[%clk 0:01:12.8]} 24. Rf2 {[%clk 0:00:02.3]} 24... Rac8 {[%clk 0:01:13.1]} 25.
Bf3 {[%clk 0:00:02.2]} 25... Nxd4 {[%clk 0:01:01.6]} 26. Qxd4 {[%clk 0:00:03.1]}
26... Bxf3 {[%clk 0:00:59.4]} 27. Rxf3 {[%clk 0:00:04]} 27... Rc2 {[%clk
0:00:59.5]} 28. Rf2 {[%clk 0:00:04.5]} 28... Rxf2 {[%clk 0:00:57.1]} 29. Kxf2
{[%clk 0:00:05.4]} 29... h5 {[%clk 0:00:45.2]} 30. Rd1 {[%clk 0:00:04.2]} 30...
h4 {[%clk 0:00:39.5]} 31. Rd2 {[%clk 0:00:02.7]} 31... Qg3+ {[%clk 0:00:38.9]}
32. Kf1 {[%clk 0:00:02.3]} 32... Rxe3 {[%clk 0:00:39.2]} 0-1